Workbook

Sheet Sheet1
A4: INSTRUCTIONS: Use this form when a single information collection document involves multiple reporting and recordkeeping requirements. The totals of the figures in cols. should be entered in item 13 of OMB-83-1: cols. (D) &/or (I) = 13a (respondent is only counted once); cols. F & I = 13b; cols. H & K = 13c. (F)Total/(D)Total = (E)Average (H)Total/(F)Total = (G)Average (K)Total/(I)Total = (J)Average NOTE: The columns will calculate automatically. If Col. E's response is something other than annually, i.e., 1/6 years, list as "1/6" & decimal will display. | I4: TITLE OF INFORMATION COLLECTION DOCUMENT | N4: OMB NO.
I6: Regulations for Voluntary Grading, Certification, and Standards— 7 CFR Parts 54, 56, 62, and 70. | N6: 0581-0128
N9: DATE PREPARED
N11: 2024-04-01
A13: IDENTIFICATION OF REPORTING OR RECORDKEEPING REQUIREMENT | H13: ANNUAL BURDEN
H15: REPORTS | M15: RECORDS
O17: TOTAL
G18: FORMS NO (S) | H18: NO. OF | I18: NO OF | J18: TOTAL ANNUAL | K18: HOURS | L18: TOTAL | M18: NO. OF | N18: ANNUAL | O18: RECORD-
A19: SECTION OF | B19: DESCRIPTION | G19: (If "none" | H19: RESPONDENTS | I19: RESPONSES | J19: RESPONSES | K19: PER | L19: HOURS | M19: RECORD- | N19: HOURS PER | O19: KEEPING HOURS
A20: REGS. | G20: so state) | I20: PER | J20: (Col. D x E) | K20: RESPONSE | L20: (Col. F x G) | M20: KEEPERS | N20: RECORD- | O20: (Col. I x J)
I21: RESPONDENT | N21: KEEPER
A22: (A) | B22: (B) | G22: (C) | H22: (D) | I22: (E) | J22: (F) | K22: (G) | L22: (H) | M22: (I) | N22: (J) | O22: (K)
A23: 7 CFR part 54
A24: 54.2 | B24: Scheduled Plants: Grade Data Collection for Official Marks (Description changed to better reflect information collected.) | G24: None | H24: 73 | I24: 260.0000 | J24: =H24*I24 -> 18,980.00 | K24: 0.0800 | L24: =J24*K24 -> 1,518.40 | O24: =SUM(M24*N24) -> 0.00
A25: 54.2 | B25: Unscheduled Plants: Grade Data Collection for Official Marks (Description changed to better reflect information collected.) | G25: None | H25: 155 | I25: 17.0000 | J25: =H25*I25 -> 2,635.00 | K25: 0.0800 | L25: =J25*K25 -> 210.80 | O25: =SUM(M25*N25) -> 0.00
A26: 54.4 | B26: Remove line item: Request for Eartags - Beef Carcass Data Service (Burden no longer collected) | G26: None | H26: 0 | I26: 0.0000 | J26: 0.00 | K26: 0.0000 | L26: 0.00 | O26: 0.00
A27: 54.6 | B27: Application for Service - Meat Grading or Certification Service (Burden reflected under 70.30(a)) | G27: LP-109 (Form revised to include LP-109A information) | H27: 0 | I27: 0.0000 | J27: 0.00 | K27: 0.0000 | L27: 0.00 | O27: 0.00
A28: 54.8 | B28: Request for Service - Grading or Certification | G28: None | H28: 87 | I28: 26.0000 | J28: 2,262.00 | K28: 0.0166 | L28: 37.55 | O28: 0.00
A29: 54.9 | B29: Withdrawal of Application or Request for Service - Grading and Certification | G29: None | H29: 7 | I29: 1.0000 | J29: 7.00 | K29: 0.1500 | L29: 1.05 | O29: 0.00
A30: 54.15 | B30: Beef Instrument Grading (Instrument Grading Section added in Final Rule published: 84 FR 48551, Sept. 16, 2019. Burden not included in ICR submitted 08/30/2020.) | G30: None | H30: 20 | I30: 260.0000 | J30: 5,200.00 | K30: 0.0417 | L30: 216.84 | O30: 0.00
A31: 54.19 | B31: Request for Appeal Service | G31: None | H31: 0 | I31: 1.0000 | J31: =H31*I31 -> 0.00 | K31: 0.2500 | L31: =J31*K31 -> 0.00 | O31: =SUM(M31*N31) -> 0.00
A32: 54.19 | B32: Withdrawal of Request for Appeal Service | G32: None | H32: 0 | I32: 1.0000 | J32: =H32*I32 -> 0.00 | K32: 0.1600 | L32: =J32*K32 -> 0.00 | O32: =SUM(M32*N32) -> 0.00
A33: 54.20 | B33: Exemption Request | G33: None | H33: 3 | I33: 1.0000 | J33: =H33*I33 -> 3.00 | K33: 1.0000 | L33: =J33*K33 -> 3.00 | O33: 0.00
A34: 54.27(c) | B34: Application for Scheduled Grading or Certification Service (Burden reflected under 56.18) | G34: LP-110 | H34: 0 | I34: 0.0000 | J34: =H34*I34 -> 0.00 | K34: 0.0000 | L34: =J34*K34 -> 0.00 | O34: =SUM(M34*N34) -> 0.00
B35: SUBTOTAL | J35: =SUM(J24:J34) -> 29,087.00 | L35: =SUM(L24:L34) -> 1,987.64 | O35: =SUM(O24:O33) -> 0.00
B36: TOTAL OF ALL PAGES | J36: =J35+J68+J98+J129+J158+J190+J223+J255+J283+J312+J340 -> 82,614.75 | L36: =L35+L68+L98+L129+L158+L190+L223+L255+L283+L312+L340 -> 12,167.95 | O36: =SUM(O24:O36) -> 0.00
A37: TOTAL - COLUMNS "F" AND "I" = OMB 831, 13 b; COLUMNS "H" AND "K" = OMB 831, 13c | J37: =SUM(J36+M36) -> 82,614.75 | L37: =L36 -> 12,167.95
A40: INSTRUCTIONS: Use this form when a single information collection document involves multiple reporting and recordkeeping requirements. The totals of the figures in cols. should be entered in item 13 of OMB-83-1: cols. (D) &/or (I) = 13a (respondent is only counted once); cols. F & I = 13b; cols. H & K = 13c. (F)Total/(D)Total = (E)Average (H)Total/(F)Total = (G)Average (K)Total/(I)Total = (J)Average NOTE: The columns will calculate automatically. If Col. E's response is something other than annually, i.e., 1/6 years, list as "1/6" & decimal will display. | I40: TITLE OF INFORMATION COLLECTION DOCUMENT | N40: OMB NO.
I42: Regulations for Voluntary Grading, Certification, and Standards— 7 CFR Parts 54, 56, 62, and 70. | N42: 0581-0128
N45: DATE PREPARED
N47: =$N$11 -> 2024-04-01
A49: IDENTIFICATION OF REPORTING OR RECORDKEEPING REQUIREMENT | H49: ANNUAL BURDEN
H51: REPORTS | M51: RECORDS
O53: TOTAL
G54: FORMS NO (S) | H54: NO. OF | I54: NO OF | J54: TOTAL ANNUAL | K54: HOURS | L54: TOTAL | M54: NO. OF | N54: ANNUAL | O54: RECORD-
A55: SECTION OF | B55: DESCRIPTION | G55: (If "none" | H55: RESPONDENTS | I55: RESPONSES | J55: RESPONSES | K55: PER | L55: HOURS | M55: RECORD- | N55: HOURS PER | O55: KEEPING HOURS
A56: REGS. | G56: so state) | I56: PER | J56: (Col. D x E) | K56: RESPONSE | L56: (Col. F x G) | M56: KEEPERS | N56: RECORD- | O56: (Col. I x J)
I57: RESPONDENT | N57: KEEPER
A58: (A) | B58: (B) | G58: (C) | H58: (D) | I58: (E) | J58: (F) | K58: (G) | L58: (H) | M58: (I) | N58: (J) | O58: (K)
A59: 7 CFR part 56
A60: 56.3 | B60: Request experimentation or alternate procedures | G60: None | H60: 4 | I60: 1.0000 | J60: =SUM(H60*I60) -> 4.00 | K60: 1.0000 | L60: =SUM(J60*K60) -> 4.00 | O60: =SUM(M60*N60) -> 0.00
A61: 56.4 | B61: Request for specification approval (Burden reflected under 70.10) | G61: None | J61: =SUM(H61*I61) -> 0.00 | L61: =SUM(J61*K61) -> 0.00 | O61: =SUM(M61*N61) -> 0.00
A62: 56.10(a) | B62: Application for License (State employee's application for grader's or inspector's license) (Includes applicable burden for 70.20(a)) | G62: LP-157 | H62: 32 | I62: 1.0000 | J62: 32.00 | K62: 0.5000 | L62: 16.00 | O62: 0.00
A63: 56.10(c) | B63: Results of check gradings performed by company quality assurance inspectors in plants with scheduled service (No information collection required for authorized limited graders.) | G63: None | H63: 2 | I63: 260.0000 | J63: 520.00 | K63: 0.2000 | L63: 104.00 | O63: 0.00
A64: 56.12 | B64: State employee appeals suspension of grader's license | G64: None | H64: 1 | I64: 1.0000 | J64: =SUM(H64*I64) -> 1.00 | K64: 1.0000 | L64: =SUM(J64*K64) -> 1.00 | O64: =SUM(M64*N64) -> 0.00
A65: 56.17(b) | B65: Approval of space & equipment (plants with scheduled service surveyed by USDA) (Survey verbally discussed w/plant mgmt. Explained in A. 2. of support statement. Plants surveyed for intitial approval & when remodeled or new equipment is installed.) | G65: None | H65: 32 | I65: 1.0000 | J65: =SUM(H65*I65) -> 32.00 | K65: 0.5000 | L65: =SUM(J65*K65) -> 16.00 | O65: =SUM(M65*N65) -> 0.00
A66: 56.18 | B66: Work Schedule Request, Voluntary Grading Service (agreement for continuous scheduled service) (Includes applicable burden for 54.27(c) and 70.18) | G66: LP-110 | H66: 89 | I66: 1.0000 | J66: =SUM(H66*I66) -> 89.00 | K66: 0.2500 | L66: =SUM(J66*K66) -> 22.25 | O66: =SUM(M66*N66) -> 0.00
A67: 56.18 | B67: Verbally notify grader in advance of change in the hours of continuous scheduled grading service | G67: None | H67: 26 | I67: 2.0000 | J67: =SUM(H67*I67) -> 52.00 | K67: 0.0800 | L67: =SUM(J67*K67) -> 4.16 | O67: =SUM(M67*N67) -> 0.00
B68: SUBTOTAL | J68: =SUM(J60:J67) -> 730.00 | L68: =SUM(L60:L67) -> 167.41 | O68: =SUM(O60:O67) -> 0.00
A71: INSTRUCTIONS: Use this form when a single information collection document involves multiple reporting and recordkeeping requirements. The totals of the figures in cols. should be entered in item 13 of OMB-83-1: cols. (D) &/or (I) = 13a (respondent is only counted once); cols. F & I = 13b; cols. H & K = 13c. (F)Total/(D)Total = (E)Average (H)Total/(F)Total = (G)Average (K)Total/(I)Total = (J)Average NOTE: The columns will calculate automatically. If Col. E's response is something other than annually, i.e., 1/6 years, list as "1/6" & decimal will display. | I71: TITLE OF INFORMATION COLLECTION DOCUMENT | N71: OMB NO.
I73: Regulations for Voluntary Grading, Certification, and Standards— 7 CFR Parts 54, 56, 62, and 70. | N73: 0581-0128
N76: DATE PREPARED
N78: =$N$11 -> 2024-04-01
A80: IDENTIFICATION OF REPORTING OR RECORDKEEPING REQUIREMENT | H80: ANNUAL BURDEN
H82: REPORTS | M82: RECORDS
O84: TOTAL
G85: FORMS NO (S) | H85: NO. OF | I85: NO OF | J85: TOTAL ANNUAL | K85: HOURS | L85: TOTAL | M85: NO. OF | N85: ANNUAL | O85: RECORD-
A86: SECTION OF | B86: DESCRIPTION | G86: (If "none" | H86: RESPONDENTS | I86: RESPONSES | J86: RESPONSES | K86: PER | L86: HOURS | M86: RECORD- | N86: HOURS PER | O86: KEEPING HOURS
A87: REGS. | G87: so state) | I87: PER | J87: (Col. D x E) | K87: RESPONSE | L87: (Col. F x G) | M87: KEEPERS | N87: RECORD- | O87: (Col. I x J)
I88: RESPONDENT | N88: KEEPER
A89: (A) | B89: (B) | G89: (C) | H89: (D) | I89: (E) | J89: (F) | K89: (G) | L89: (H) | M89: (I) | N89: (J) | O89: (K)
A91: 56.23 | B91: Information provided on product and premises when product is graded or sampled on lot-fee basis (Burden reflected under 56.28(a) (lot-fee basis). | G91: None | J91: =SUM(H91*I91) -> 0.00 | L91: =SUM(J91*K91) -> 0.00 | O91: =SUM(M91*N91) -> 0.00
A92: 56.23 | B92: Volume of Shell Eggs graded per billing period in applicable plants | G92: LP-240S | H92: 18 | I92: 7.0000 | J92: =SUM(H92*I92) -> 126.00 | K92: 0.7500 | L92: =SUM(J92*K92) -> 94.50 | O92: =SUM(M92*N92) -> 0.00
A93: 56.24 | B93: Submit petition for reconsideration of rejected application for service | G93: None | H93: 1 | I93: 1.0000 | J93: =SUM(H93*I93) -> 1.00 | K93: 2.0000 | L93: =SUM(J93*K93) -> 2.00 | O93: =SUM(M93*N93) -> 0.00
A94: 56.25 | B94: Withdraw application for continuous grading service (Negligible) | G94: None | H94: 1 | I94: 1.0000 | J94: =SUM(H94*I94) -> 1.00 | K94: 0.2500 | L94: =SUM(J94*K94) -> 0.25 | O94: =SUM(M94*N94) -> 0.00
A95: 56.26 | B95: Proof of applicant's authority | G95: None | H95: 1 | I95: 1.0000 | J95: =SUM(H95*I95) -> 1.00 | K95: 0.5000 | L95: =SUM(J95*K95) -> 0.50 | O95: =SUM(M95*N95) -> 0.00
A96: 56.28(a) | B96: Request service on lot-fee basis-may be oral or in writing (Includes applicable burden for 56.23 and 56.58. Most all requests are telephone or direct verbal requests.) | G96: None | H96: 183 | I96: 20.0000 | J96: =SUM(H96*I96) -> 3,660.00 | K96: 0.1600 | L96: =SUM(J96*K96) -> 585.60 | O96: =SUM(M96*N96) -> 0.00
A97: 56.28(a) | B97: Written request to establish scheduled grading service on as-needed basis | G97: None | H97: 10 | I97: 1.0000 | J97: =SUM(H97*I97) -> 10.00 | K97: 0.2500 | L97: =SUM(J97*K97) -> 2.50 | O97: =SUM(M97*N97) -> 0.00
B98: SUBTOTAL | J98: =SUM(J91:J97) -> 3,799.00 | L98: =SUM(L91:L97) -> 685.35 | O98: =SUM(O91:O92) -> 0.00
A101: INSTRUCTIONS: Use this form when a single information collection document involves multiple reporting and recordkeeping requirements. The totals of the figures in cols. should be entered in item 13 of OMB-83-1: cols. (D) &/or (I) = 13a (respondent is only counted once); cols. F & I = 13b; cols. H & K = 13c. (F)Total/(D)Total = (E)Average (H)Total/(F)Total = (G)Average (K)Total/(I)Total = (J)Average NOTE: The columns will calculate automatically. If Col. E's response is something other than annually, i.e., 1/6 years, list as "1/6" & decimal will display. | I101: TITLE OF INFORMATION COLLECTION DOCUMENT | N101: OMB NO.
I103: Regulations for Voluntary Grading, Certification, and Standards— 7 CFR Parts 54, 56, 62, and 70. | N103: 0581-0128
N106: DATE PREPARED
N108: =$N$11 -> 2024-04-01
A110: IDENTIFICATION OF REPORTING OR RECORDKEEPING REQUIREMENT | H110: ANNUAL BURDEN
H112: REPORTS | M112: RECORDS
O114: TOTAL
G115: FORMS NO (S) | H115: NO. OF | I115: NO OF | J115: TOTAL ANNUAL | K115: HOURS | L115: TOTAL | M115: NO. OF | N115: ANNUAL | O115: RECORD-
A116: SECTION OF | B116: DESCRIPTION | G116: (If "none" | H116: RESPONDENTS | I116: RESPONSES | J116: RESPONSES | K116: PER | L116: HOURS | M116: RECORD- | N116: HOURS PER | O116: KEEPING HOURS
A117: REGS. | G117: so state) | I117: PER | J117: (Col. D x E) | K117: RESPONSE | L117: (Col. F x G) | M117: KEEPERS | N117: RECORD- | O117: (Col. I x J)
I118: RESPONDENT | N118: KEEPER
A119: (A) | B119: (B) | G119: (C) | H119: (D) | I119: (E) | J119: (F) | K119: (G) | L119: (H) | M119: (I) | N119: (J) | O119: (K)
A121: 56.28(a) | B121: Verbally request service of a grader to grade product (service on as-needed basis) | G121: None | H121: 37 | I121: 52.0000 | J121: =SUM(H121*I121) -> 1,924.00 | K121: 0.1600 | L121: =SUM(J121*K121) -> 307.84 | O121: =SUM(M121*N121) -> 0.00
A122: 56.28(a) | B122: Written request to cancel scheduled grading service on as-needed basis | G122: None | H122: 16 | I122: 1.0000 | J122: 16.00 | K122: 0.2500 | L122: 4.00 | O122: 0.00
A123: 56.28(b) | B123: Application for continuous scheduled grading service (Burden reflected under 70.30(a)) | G123: LP-109 (Form revised to include LP-109A information) | J123: =SUM(H123*I123) -> 0.00 | L123: 0.00 | O123: 0.00
A124: 56.28 (c) | B124: Application for temporary grading service on a fee basis (Burden reflected under 70.30(a)) | G124: LP-109 (Form revised to include LP-109A information) | J124: 0.00 | L124: 0.00 | O124: 0.00
A125: 56.29(c) | B125: Request hearing on debarment, suspension, or withdrawal of service | G125: None | H125: 1 | I125: 1.0000 | J125: =SUM(H125*I125) -> 1.00 | K125: 3.0000 | L125: =SUM(J125*K125) -> 3.00 | O125: =SUM(M125*N125) -> 0.00
A126: 56.30 | B126: Grader's report of violation or noncompliances (LP reg 59.240-Burden is currently approved under OMB #0581-0113.) | G126: LP-518-1 (previously LPS-518-1) | J126: 0.00 | L126: 0.00 | O126: 0.00
A127: 56.35(b) | B127: Submit labels with USDA grademark for approval (Reflects burden to develop, assemble & provide labeling information, and to present the labeling information.) | G127: None | H127: 43 | I127: 37.0000 | J127: =SUM(H127*I127) -> 1,591.00 | K127: 1.0000 | L127: =SUM(J127*K127) -> 1,591.00 | O127: =SUM(M127*N127) -> 0.00
A128: 56.35(c) | B128: Submit nutritional labeling for approval (Reflects burden - due to FDA & USDA requirements - to assemble and provide the nutritional information, & to present the nutritional labeling.) | G128: None | H128: 7 | I128: 1.0000 | J128: =SUM(H128*I128) -> 7.00 | K128: 1.0000 | L128: =SUM(J128*K128) -> 7.00 | O128: =SUM(M128*N128) -> 0.00
B129: SUBTOTAL | J129: =SUM(J121:J128) -> 3,539.00 | L129: =SUM(L121:L128) -> 1,912.84 | O129: =SUM(O93:O128) -> 0.00
A133: INSTRUCTIONS: Use this form when a single information collection document involves multiple reporting and recordkeeping requirements. The totals of the figures in cols. should be entered in item 13 of OMB-83-1: cols. (D) &/or (I) = 13a (respondent is only counted once); cols. F & I = 13b; cols. H & K = 13c. (F)Total/(D)Total = (E)Average (H)Total/(F)Total = (G)Average (K)Total/(I)Total = (J)Average NOTE: The columns will calculate automatically. If Col. E's response is something other than annually, i.e., 1/6 years, list as "1/6" & decimal will display. | I133: TITLE OF INFORMATION COLLECTION DOCUMENT | N133: OMB NO.
I135: Regulations for Voluntary Grading, Certification, and Standards— 7 CFR Parts 54, 56, 62, and 70. | N135: 0581-0128
N138: DATE PREPARED
N140: =$N$11 -> 2024-04-01
A142: IDENTIFICATION OF REPORTING OR RECORDKEEPING REQUIREMENT | H142: ANNUAL BURDEN
H144: REPORTS | M144: RECORDS
O146: TOTAL
G147: FORMS NO (S) | H147: NO. OF | I147: NO OF | J147: TOTAL ANNUAL | K147: HOURS | L147: TOTAL | M147: NO. OF | N147: ANNUAL | O147: RECORD-
A148: SECTION OF | B148: DESCRIPTION | G148: (If "none" | H148: RESPONDENTS | I148: RESPONSES | J148: RESPONSES | K148: PER | L148: HOURS | M148: RECORD- | N148: HOURS PER | O148: KEEPING HOURS
A149: REGS. | G149: so state) | I149: PER | J149: (Col. D x E) | K149: RESPONSE | L149: (Col. F x G) | M149: KEEPERS | N149: RECORD- | O149: (Col. I x J)
I150: RESPONDENT | N150: KEEPER
A151: (A) | B151: (B) | G151: (C) | H151: (D) | I151: (E) | J151: (F) | K151: (G) | L151: (H) | M151: (I) | N151: (J) | O151: (K)
A153: 56.37 | B153: Request approval of alternate lot numbering system | G153: None | H153: 2 | I153: 1.0000 | J153: =SUM(H153*I153) -> 2.00 | K153: 0.5000 | L153: =SUM(J153*K153) -> 1.00 | O153: =SUM(M153*N153) -> 0.00
A154: 56.52(a)(1) | B154: New application for continuous scheduled service submitted because of change in name, ownership or location (Burden is reflected under Reg. 70.30(a)) | G154: LP-109 (Form revised to include LP-109A information) | J154: =SUM(H154*I154) -> 0.00 | L154: =SUM(J154*K154) -> 0.00 | O154: =SUM(M154*N154) -> 0.00
A155: 56.52(b)(1) | B155: Company designates, in writing, plant employee required and authorized to furnish information to USDA grader | G155: None | H155: 75 | I155: 1.0000 | J155: =SUM(H155*I155) -> 75.00 | K155: 0.2000 | L155: =SUM(J155*K155) -> 15.00 | O155: =SUM(M155*N155) -> 0.00
A156: 56.52(b)(3)(ii) | B156: Applicant's written notice to terminate continuous service | G156: None | H156: 12 | I156: 1.0000 | J156: =SUM(H156*I156) -> 12.00 | K156: 0.2500 | L156: =SUM(J156*K156) -> 3.00 | O156: =SUM(M156*N156) -> 0.00
A157: 56.56(a) and 56.57 | B157: Request for USDA grading certificates (Direct verbal request to USDA grader. Includes applicable burden for 56.58.) | G157: None | H157: 173 | I157: 60.0000 | J157: =SUM(H157*I157) -> 10,380.00 | K157: 0.0500 | L157: =SUM(J157*K157) -> 519.00 | O157: =SUM(M157*N157) -> 0.00
B158: SUBTOTAL | J158: =SUM(J153:J157) -> 10,469.00 | L158: =SUM(L153:L157) -> 538.00 | O158: =SUM(O153:O157) -> 0.00
A161: INSTRUCTIONS: Use this form when a single information collection document involves multiple reporting and recordkeeping requirements. The totals of the figures in cols. should be entered in item 13 of OMB-83-1: cols. (D) &/or (I) = 13a (respondent is only counted once); cols. F & I = 13b; cols. H & K = 13c. (F)Total/(D)Total = (E)Average (H)Total/(F)Total = (G)Average (K)Total/(I)Total = (J)Average NOTE: The columns will calculate automatically. If Col. E's response is something other than annually, i.e., 1/6 years, list as "1/6" & decimal will display. | I161: TITLE OF INFORMATION COLLECTION DOCUMENT | N161: OMB NO.
I163: Regulations for Voluntary Grading, Certification, and Standards— 7 CFR Parts 54, 56, 62, and 70. | N163: 0581-0128
N166: DATE PREPARED
N168: =$N$11 -> 2024-04-01
A170: IDENTIFICATION OF REPORTING OR RECORDKEEPING REQUIREMENT | H170: ANNUAL BURDEN
H172: REPORTS | M172: RECORDS
O174: TOTAL
G175: FORMS NO (S) | H175: NO. OF | I175: NO OF | J175: TOTAL ANNUAL | K175: HOURS | L175: TOTAL | M175: NO. OF | N175: ANNUAL | O175: RECORD-
A176: SECTION OF | B176: DESCRIPTION | G176: (If "none" | H176: RESPONDENTS | I176: RESPONSES | J176: RESPONSES | K176: PER | L176: HOURS | M176: RECORD- | N176: HOURS PER | O176: KEEPING HOURS
A177: REGS. | G177: so state) | I177: PER | J177: (Col. D x E) | K177: RESPONSE | L177: (Col. F x G) | M177: KEEPERS | N177: RECORD- | O177: (Col. I x J)
I178: RESPONDENT | N178: KEEPER
A179: (A) | B179: (B) | G179: (C) | H179: (D) | I179: (E) | J179: (F) | K179: (G) | L179: (H) | M179: (I) | N179: (J) | O179: (K)
A181: 56.58 | B181: Request USDA to telephone information from USDA grading certificate in advance (Burden reflected under 56.28(a) (lot fee basis) and 56.56(a).) | G181: None | J181: =SUM(H181*I181) -> 0.00 | L181: =SUM(J181*K181) -> 0.00 | O181: =SUM(M181*N181) -> 0.00
A182: 56.60 and 56.62 | B182: Request for an appeal grading - may be oral or in writing (Most all are direct verbal or telephone request.) | G182: None | H182: 2 | I182: 1.0000 | J182: =SUM(H182*I182) -> 2.00 | K182: 0.1600 | L182: =SUM(J182*K182) -> 0.32 | O182: =SUM(M182*N182) -> 0.00
A183: 56.76(f) | B183: Submit certificate or potable water supply (Primarily a reporting burden as explained in A. 4. of supporting statement.) | G183: None | H183: 187 | I183: 1.2500 | J183: =SUM(H183*I183) -> 233.75 | K183: 0.5000 | L183: =SUM(J183*K183) -> 116.88 | O183: =SUM(M183*N183) -> 0.00
A184: 56.76(h) | B184: Request approval of chemical compounds (including inks & oils used on products) (Reflects burden for food grade inks and mineral oils.) | G184: None | H184: 6 | I184: 1.0000 | J184: =SUM(H184*I184) -> 6.00 | K184: 1.0000 | L184: =SUM(J184*K184) -> 6.00 | O184: =SUM(M184*N184) -> 0.00
A185: 56.76(h) | B185: (Reflects burden for sanitizer, cleaning compounds, additives, insecticides, etc.) | G185: None | H185: 22 | I185: 1.0000 | J185: =SUM(H185*I185) -> 22.00 | K185: 1.0000 | L185: =SUM(J185*K185) -> 22.00 | O185: =SUM(M185*N185) -> 0.00
A186: 7 CFR Part 62
A187: 62.200 | B187: QSVP Services: USDA Processed Egg and Egg Products Export Verification Certificate | G187: LP-234 | H187: 55 | I187: 15.0000 | J187: =H187*I187 -> 825.00 | K187: 0.2000 | L187: =J187*K187 -> 165.00 | O187: 0.00
A188: 62.202 | B188: Application for Service - (QSVP Services) (Burden reflected under 70.30(a)) | G188: LP-109 (Form revised to include LP-109A information) | J188: =H188*I188 -> 0.00 | L188: =J188*K188 -> 0.00 | O188: 0.00
A189: 62.202 | B189: Review and Submission of Documentation | G189: None | H189: 162 | I189: 1.0000 | J189: =H189*I189 -> 162.00 | K189: 24.0000 | L189: =J189*K189 -> 3,888.00 | O189: =SUM(M189*N189) -> 0.00
B190: SUBTOTAL | J190: =SUM(J181:J189) -> 1,250.75 | L190: =SUM(L181:L189) -> 4,198.20 | O190: =SUM(O181:O189) -> 0.00
A193: INSTRUCTIONS: Use this form when a single information collection document involves multiple reporting and recordkeeping requirements. The totals of the figures in cols. should be entered in item 13 of OMB-83-1: cols. (D) &/or (I) = 13a (respondent is only counted once); cols. F & I = 13b; cols. H & K = 13c. (F)Total/(D)Total = (E)Average (H)Total/(F)Total = (G)Average (K)Total/(I)Total = (J)Average NOTE: The columns will calculate automatically. If Col. E's response is something other than annually, i.e., 1/6 years, list as "1/6" & decimal will display. | I193: TITLE OF INFORMATION COLLECTION DOCUMENT | N193: OMB NO.
I195: Regulations for Voluntary Grading, Certification, and Standards— 7 CFR Parts 54, 56, 62, and 70. | N195: 0581-0128
N198: DATE PREPARED
N200: =$N$11 -> 2024-04-01
A202: IDENTIFICATION OF REPORTING OR RECORDKEEPING REQUIREMENT | H202: ANNUAL BURDEN
H204: REPORTS | M204: RECORDS
O206: TOTAL
G207: FORMS NO (S) | H207: NO. OF | I207: NO OF | J207: TOTAL ANNUAL | K207: HOURS | L207: TOTAL | M207: NO. OF | N207: ANNUAL | O207: RECORD-
A208: SECTION OF | B208: DESCRIPTION | G208: (If "none" | H208: RESPONDENTS | I208: RESPONSES | J208: RESPONSES | K208: PER | L208: HOURS | M208: RECORD- | N208: HOURS PER | O208: KEEPING HOURS
A209: REGS. | G209: so state) | I209: PER | J209: (Col. D x E) | K209: RESPONSE | L209: (Col. F x G) | M209: KEEPERS | N209: RECORD- | O209: (Col. I x J)
I210: RESPONDENT | N210: KEEPER
A211: (A) | B211: (B) | G211: (C) | H211: (D) | I211: (E) | J211: (F) | K211: (G) | L211: (H) | M211: (I) | N211: (J) | O211: (K)
A212: 7 CFR part 70
A213: 70.3 | B213: Request experimentation or alternate procedures | G213: None | H213: 9 | I213: 1.0000 | J213: =SUM(H213*I213) -> 9.00 | K213: 1.0000 | L213: =SUM(J213*K213) -> 9.00 | O213: =SUM(M213*N213) -> 0.00
A214: 70.10 | B214: Electronic request for Specification Approval (Includes applicable burden for 56.4) | G214: None | H214: 4 | I214: 1.5000 | J214: =SUM(H214*I214) -> 6.00 | K214: 2.0000 | L214: =SUM(J214*K214) -> 12.00 | O214: =SUM(M214*N214) -> 0.00
A215: 70.17 | B215: Info provided on product graded on lot-fee basis (Burden reflected under 70.30(a). | G215: None | I215: 0.0000 | K215: 0.0000 | L215: 0.00 | O215: 0.00
A216: 70.18 | B216: Grading Work Schedule Request for continuous service. (Burden reflected under 56.18) | G216: LP-110 | J216: =SUM(H216*I216) -> 0.00 | L216: =SUM(J216*K216) -> 0.00 | O216: =SUM(M216*N216) -> 0.00
A217: 70.18 | B217: Verbally notify grader in advance of change in the hours of continuous grading service. | G217: None | H217: 12 | I217: 3.0000 | J217: =SUM(H217*I217) -> 36.00 | K217: 0.0800 | L217: =SUM(J217*K217) -> 2.88 | O217: =SUM(M217*N217) -> 0.00
A218: 70.20(a) | B218: State employee's request for grader's license (Burden reflected under 56.10(a)) | G218: LP-157 | J218: 0.00 | L218: 0.00 | O218: 0.00
A219: 70.21 | B219: State employee appeals suspension of grader's license | G219: None | J219: =SUM(H219*I219) -> 0.00 | K219: 1.0000 | L219: =SUM(J219*K219) -> 0.00 | O219: =SUM(M219*N219) -> 0.00
A220: 70.30(a) | B220: Written request to establish grading service on as-needed basis | G220: None | H220: 16 | I220: 1.0000 | J220: =SUM(H220*I220) -> 16.00 | K220: 0.2500 | L220: =SUM(J220*K220) -> 4.00 | O220: =SUM(M220*N220) -> 0.00
A221: 70.30(a) | B221: Verbally request service of a grader to grade product (service on as-needed basis) | G221: None | H221: 121 | I221: 15.0000 | J221: =SUM(H221*I221) -> 1,815.00 | K221: 0.1600 | L221: =SUM(J221*K221) -> 290.40 | O221: =SUM(M221*N221) -> 0.00
A222: 70.30(a) | B222: Written request to cancel grading service on as-needed basis | G222: None | H222: 10 | I222: 1.0000 | J222: =SUM(H222*I222) -> 10.00 | K222: 0.2500 | L222: =SUM(J222*K222) -> 2.50 | O222: =SUM(M222*N222) -> 0.00
B223: SUBTOTAL | J223: =SUM(J213:J222) -> 1,892.00 | L223: =SUM(L213:L222) -> 320.78 | O223: =SUM(O216:O222) -> 0.00
A226: INSTRUCTIONS: Use this form when a single information collection document involves multiple reporting and recordkeeping requirements. The totals of the figures in cols. should be entered in item 13 of OMB-83-1: cols. (D) &/or (I) = 13a (respondent is only counted once); cols. F & I = 13b; cols. H & K = 13c. (F)Total/(D)Total = (E)Average (H)Total/(F)Total = (G)Average (K)Total/(I)Total = (J)Average NOTE: The columns will calculate automatically. If Col. E's response is something other than annually, i.e., 1/6 years, list as "1/6" & decimal will display. | I226: TITLE OF INFORMATION COLLECTION DOCUMENT | N226: OMB NO.
I228: Regulations for Voluntary Grading, Certification, and Standards— 7 CFR Parts 54, 56, 62, and 70. | N228: 0581-0128
N231: DATE PREPARED
N233: =$N$11 -> 2024-04-01
A235: IDENTIFICATION OF REPORTING OR RECORDKEEPING REQUIREMENT | H235: ANNUAL BURDEN
H237: REPORTS | M237: RECORDS
O239: TOTAL
G240: FORMS NO (S) | H240: NO. OF | I240: NO OF | J240: TOTAL ANNUAL | K240: HOURS | L240: TOTAL | M240: NO. OF | N240: ANNUAL | O240: RECORD-
A241: SECTION OF | B241: DESCRIPTION | G241: (If "none" | H241: RESPONDENTS | I241: RESPONSES | J241: RESPONSES | K241: PER | L241: HOURS | M241: RECORD- | N241: HOURS PER | O241: KEEPING HOURS
A242: REGS. | G242: so state) | I242: PER | J242: (Col. D x E) | K242: RESPONSE | L242: (Col. F x G) | M242: KEEPERS | N242: RECORD- | O242: (Col. I x J)
I243: RESPONDENT | N243: KEEPER
A244: (A) | B244: (B) | G244: (C) | H244: (D) | I244: (E) | J244: (F) | K244: (G) | L244: (H) | M244: (I) | N244: (J) | O244: (K)
A246: 70.30(a) | B246: Request service on lot-fee basis - may be oral or in writing (Incl applicable burden for 70.92. Most all requests are telephone or direct verbal requests.) | G246: None | H246: 116 | I246: 32.0000 | J246: =SUM(H246*I246) -> 3,712.00 | K246: 0.1600 | L246: =SUM(J246*K246) -> 593.92 | O246: =SUM(M246*N246) -> 0.00
A247: 70.30(a) | B247: Application for Service (continuous grading service) (Incl burden under 70.38(d) & 70.77(a)(1) and applicable burden for 62.202, 54.6 and 56.28(b)(c) & 56.52(a)(1) | G247: LP-109 (Form revised to include LP-109A information) | H247: 211 | I247: 1.0000 | J247: =SUM(H247*I247) -> 211.00 | K247: 0.3333 | L247: =SUM(J247*K247) -> 70.33
A248: 70.30(a) | B248: Application for Service (continuous grading service) (Incl burden under 70.38(d) & 70.77(a)(1) and applicable burden for 62.202, 54.6 and 56.28(b)(c) & 56.52(a)(1) ICR 0581-0338 merged into 0581-0128 and discontinued 07/11/2024. Burden included in line item above for LP-109. | G248: LP-109A (Form merged with LP-109) | H248: 0 | I248: 0.0000 | J248: 0.00 | K248: 0.0000 | L248: 0.00
A249: 70.32 | B249: Proof of applicant's authority | G249: None | H249: 1 | I249: 1.0000 | J249: =SUM(H249*I249) -> 1.00 | K249: 0.5000 | L249: =SUM(J249*K249) -> 0.50 | O249: =SUM(M249*N249) -> 0.00
A250: 70.33 | B250: Plant survey for approval of application for grading service (Survey verbally discussed with plant mangement. Explained in A.2 of supporting statement) | G250: None | H250: 26 | I250: 1.0000 | J250: 26.00 | K250: 0.5000 | L250: 13.00 | O250: 0.00
A251: 70.34 | B251: Submit petition for reconsideration of rejected application for grading service | G251: None | H251: 1 | I251: 1.0000 | J251: 1.00 | K251: 2.0000 | L251: 2.00 | O251: 0.00
A252: 70.35 | B252: Withdraw application for continuous grading service | G252: None | H252: 1 | I252: 1.0000 | J252: =SUM(H252*I252) -> 1.00 | K252: 0.3300 | L252: =SUM(J252*K252) -> 0.33 | O252: =SUM(M252*N252) -> 0.00
A253: 70.38(c) | B253: Request hearing on suspension or withdrawal of service | G253: None | H253: 1 | I253: 1.0000 | J253: 1.00 | K253: 2.0000 | L253: 2.00 | O253: 0.00
A254: 70.38(d) | B254: Reapply for continuous grading service (Burden reflected under 70.30(a)) | G254: LP-109 (Form revised to include LP-109A information) | J254: =SUM(H254*I254) -> 0.00 | L254: =SUM(J254*K254) -> 0.00 | O254: =SUM(M254*N254) -> 0.00
B255: SUBTOTAL | J255: =SUM(J246:J254) -> 3,953.00 | L255: =SUM(L246:L254) -> 682.08 | O255: =SUM(O246:O254) -> 0.00
A258: INSTRUCTIONS: Use this form when a single information collection document involves multiple reporting and recordkeeping requirements. The totals of the figures in cols. should be entered in item 13 of OMB-83-1: cols. (D) &/or (I) = 13a (respondent is only counted once); cols. F & I = 13b; cols. H & K = 13c. (F)Total/(D)Total = (E)Average (H)Total/(F)Total = (G)Average (K)Total/(I)Total = (J)Average NOTE: The columns will calculate automatically. If Col. E's response is something other than annually, i.e., 1/6 years, list as "1/6" & decimal will display. | I258: TITLE OF INFORMATION COLLECTION DOCUMENT | N258: OMB NO.
I260: Regulations for Voluntary Grading, Certification, and Standards— 7 CFR Parts 54, 56, 62, and 70. | N260: 0581-0128
N263: DATE PREPARED
N265: =$N$11 -> 2024-04-01
A267: IDENTIFICATION OF REPORTING OR RECORDKEEPING REQUIREMENT | H267: ANNUAL BURDEN
H269: REPORTS | M269: RECORDS
O271: TOTAL
G272: FORMS NO (S) | H272: NO. OF | I272: NO OF | J272: TOTAL ANNUAL | K272: HOURS | L272: TOTAL | M272: NO. OF | N272: ANNUAL | O272: RECORD-
A273: SECTION OF | B273: DESCRIPTION | G273: (If "none" | H273: RESPONDENTS | I273: RESPONSES | J273: RESPONSES | K273: PER | L273: HOURS | M273: RECORD- | N273: HOURS PER | O273: KEEPING HOURS
A274: REGS. | G274: so state) | I274: PER | J274: (Col. D x E) | K274: RESPONSE | L274: (Col. F x G) | M274: KEEPERS | N274: RECORD- | O274: (Col. I x J)
I275: RESPONDENT | N275: KEEPER
A276: (A) | B276: (B) | G276: (C) | H276: (D) | I276: (E) | J276: (F) | K276: (G) | L276: (H) | M276: (I) | N276: (J) | O276: (K)
A278: 70.40 | B278: Request hearing on debarment (Burden reflected under 70.38(c)) | G278: None | J278: =SUM(H278*I278) -> 0.00 | L278: =SUM(J278*K278) -> 0.00 | O278: =SUM(M278*N278) -> 0.00
A279: 70.50 | B279: Submit labeling w/USDA grademark for approval (Labeling required for submission to USDA's FSIS (9 CFR 381). Burden shown reflects portion estimated to be due to LP requirements in 70.50. Expl'd in A.4 of support statement.) | G279: None | H279: 18 | I279: 34.0000 | J279: =SUM(H279*I279) -> 612.00 | K279: 0.2500 | L279: =SUM(J279*K279) -> 153.00 | O279: =SUM(M279*N279) -> 0.00
A280: 70.61 | B280: Volume of product graded per month in applicable plants. | G280: LP-240P (changed to LP-240P last renewal) | H280: 36 | I280: 6.0000 | J280: =SUM(H280*I280) -> 216.00 | K280: 0.7500 | L280: =SUM(J280*K280) -> 162.00 | O280: =SUM(M280*N280) -> 0.00
A281: 70.62 | B281: Grader's report of violations or noncompliance (Burden for all LP regs reflected under 59.240, OMB 0581-0113) | G281: LP-518-1 OMB 0581-0113 (Changed to LP-518-1 in last renewal) | J281: =SUM(H281*I281) -> 0.00 | L281: =SUM(J281*K281) -> 0.00 | O281: =SUM(M281*N281) -> 0.00
A282: 70.71 | B282: Company designates, in writing, plant employee required and authorized to furnish information to grader | G282: None | H282: 1 | I282: 1.0000 | J282: =SUM(H282*I282) -> 1.00 | K282: 0.2000 | L282: =SUM(J282*K282) -> 0.20 | O282: =SUM(M282*N282) -> 0.00
B283: SUBTOTAL | J283: =SUM(J278:J282) -> 829.00 | L283: =SUM(L278:L282) -> 315.20 | O283: =SUM(O278:O282) -> 0.00
A288: INSTRUCTIONS: Use this form when a single information collection document involves multiple reporting and recordkeeping requirements. The totals of the figures in cols. should be entered in item 13 of OMB-83-1: cols. (D) &/or (I) = 13a (respondent is only counted once); cols. F & I = 13b; cols. H & K = 13c. (F)Total/(D)Total = (E)Average (H)Total/(F)Total = (G)Average (K)Total/(I)Total = (J)Average NOTE: The columns will calculate automatically. If Col. E's response is something other than annually, i.e., 1/6 years, list as "1/6" & decimal will display. | I288: TITLE OF INFORMATION COLLECTION DOCUMENT | N288: OMB NO.
I290: Regulations for Voluntary Grading, Certification, and Standards— 7 CFR Parts 54, 56, 62, and 70. | N290: 0581-0128
N293: DATE PREPARED
N295: =$N$11 -> 2024-04-01
A297: IDENTIFICATION OF REPORTING OR RECORDKEEPING REQUIREMENT | H297: ANNUAL BURDEN
H299: REPORTS | M299: RECORDS
... 29 more rows
